bitfinex/quotes_BTCUSD_20241014
["timestamp","ask_amount","ask_price","bid_price","bid_amount"]
[1728924509391,0.70533561,65758.0,65757.0,1e-06]
[1728924509832,0.71933561,65758.0,65757.0,1e-06]
[1728924510037,0.70533561,65758.0,65757.0,1e-06]
[1728924510558,0.52250704,65758.0,65757.0,1e-06]
[1728924510981,0.53250704,65758.0,65757.0,1e-06]
[1728924513313,0.53252371,65758.0,65757.0,1e-06]
[1728924515390,0.01,65751.0,65750.0,0.000825]
[1728924515600,0.45301376,65747.0,65746.0,1e-06]
[1728924515812,0.67246547,65747.0,65746.0,1e-06]
[1728924516021,0.2851,65746.0,65745.0,5e-07]
[1728924516234,0.50455171,65746.0,65745.0,5e-07]
[1728924516442,0.54978149,65746.0,65745.0,5e-07]
[1728924516857,0.50455171,65746.0,65745.0,5e-07]
[1728924517288,0.69646747,65746.0,65745.0,5e-07]
[1728924517726,0.47150739,65746.0,65745.0,0.0983005]
[1728924517936,0.48550739,65746.0,65745.0,0.0983005]
[1728924518378,0.49950739,65746.0,65745.0,0.0983005]
[1728924519008,0.50850739,65746.0,65745.0,0.0983005]
[1728924519223,0.52150739,65746.0,65745.0,0.0983005]
[1728924519464,0.50750739,65746.0,65745.0,0.0983005]
[1728924519879,0.52150739,65746.0,65745.0,0.0983005]
[1728924520090,0.50750739,65746.0,65745.0,0.0983005]
[1728924520566,0.51750739,65746.0,65745.0,0.0983005]
[1728924524114,0.39450739,65746.0,65745.0,0.0983005]
[1728924524340,0.37648919,65746.0,65745.0,0.0983005]
[1728924525327,0.37650654,65746.0,65745.0,0.0983005]
[1728924525577,0.47650682,65746.0,65745.0,0.0983005]
[1728924525994,0.47650682,65746.0,65745.0,0.1816005]
[1728924527053,0.47650682,65746.0,65745.0,0.1824265]
[1728924528098,0.47652976,65746.0,65745.0,0.1824265]
[1728924528517,0.32300129,65746.0,65745.0,0.1874265]
[1728924529149,0.70370783,65746.0,65745.0,0.1824265]
[1728924529391,0.49467246,65746.0,65745.0,0.1824265]
[1728924530240,0.51767246,65746.0,65745.0,0.1824265]
[1728924533257,0.51767797,65746.0,65745.0,0.1824265]
[1728924534765,0.51767797,65746.0,65745.0,0.1874265]
[1728924534766,0.2411495,65746.0,65745.0,0.1874265]
[1728924535315,0.20050365,65746.0,65745.0,0.1874265]
[1728924535540,0.04840365,65746.0,65745.0,0.1874265]
[1728924535753,0.01,65768.0,65745.0,0.1874265]
[1728924535754,0.608284,65759.0,65757.0,0.005]
[1728924535971,0.19438461,65758.0,65757.0,0.1798]
[1728924536659,0.34790958,65758.0,65757.0,0.1748]
[1728924537344,0.37890958,65758.0,65757.0,0.1748]
[1728924537552,0.37090958,65758.0,65757.0,0.1748]
[1728924537961,0.38490958,65758.0,65757.0,0.1748]
[1728924538555,0.37090958,65758.0,65757.0,0.1748]
[1728924538763,0.38190958,65758.0,65757.0,0.1748]
[1728924538971,0.39290958,65758.0,65757.0,0.1748]
[1728924539196,0.38190958,65758.0,65757.0,0.1748]
[1728924539615,0.3488417,65758.0,65757.0,0.1748]
[1728924540456,0.36689855,65758.0,65757.0,0.1748]
[1728924540893,0.36687894,65758.0,65757.0,0.1748]
[1728924541109,0.36687902,65758.0,65757.0,0.1748]
[1728924541320,0.36687885,65758.0,65757.0,0.1748]
[1728924541732,0.36687885,65758.0,65757.0,0.1798]
[1728924541939,0.19529421,65758.0,65757.0,0.1798]
[1728924543801,0.19528169,65758.0,65757.0,0.1798]
[1728924544245,0.172724,65758.0,65757.0,0.1798]
[1728924544851,0.020652,65758.0,65757.0,0.1798]
[1728924545048,0.172724,65758.0,65757.0,0.1798]
[1728924545327,0.020652,65758.0,65757.0,0.1798]
[1728924545629,0.020652,65758.0,65757.0,0.331875]
[1728924545778,0.152045,65770.0,65769.0,0.005]
[1728924546001,0.152045,65770.0,65769.0,0.1805]
[1728924546396,0.304086,65771.0,65769.0,0.1805]
[1728924546517,0.152045,65770.0,65769.0,0.1805]
[1728924547407,0.153045,65770.0,65769.0,0.1805]
[1728924547622,0.001,65770.0,65769.0,0.1805]
[1728924547842,0.001,65770.0,65769.0,0.332547]
[1728924548007,0.304075,65774.0,65773.0,0.005]
[1728924548244,0.16612685,65774.0,65773.0,0.0862]
[1728924549054,0.01409185,65774.0,65773.0,0.0862]
[1728924549259,0.152033,65775.0,65774.0,0.183]
[1728924550748,0.304056,65778.0,65777.0,0.005]
[1728924550952,0.47015616,65778.0,65777.0,0.0981]
[1728924551305,0.47015616,65778.0,65777.0,0.1747]
[1728924551435,0.456082,65778.0,65777.0,0.1747]
[1728924552262,0.459082,65778.0,65777.0,0.1747]
[1728924554787,0.003,65778.0,65777.0,0.50964376]
[1728924554998,0.003,65778.0,65777.0,0.51464376]
[1728924555223,0.003,65778.0,65777.0,0.69755952]
[1728924555453,0.305647,65791.0,65777.0,0.69755952]
[1728924555454,0.001652,65791.0,65780.0,0.342721]
[1728924555744,0.001652,65791.0,65780.0,0.49624947]
[1728924555943,0.001652,65791.0,65790.0,0.35361576]
[1728924556980,0.001652,65791.0,65790.0,0.50561376]
[1728924557591,0.001652,65791.0,65790.0,0.51061376]
[1728924557799,0.21294646,65799.0,65798.0,0.15698]
[1728924557992,0.00165,65801.0,65798.0,0.66217476]
[1728924558229,0.153624,65801.0,65798.0,0.35821576]
[1728924558650,0.00165,65801.0,65799.0,0.151977]
[1728924558863,0.00165,65801.0,65798.0,0.35821576]
[1728924558864,0.153623,65801.0,65798.0,0.35821576]
[1728924559280,0.151975,65800.0,65798.0,0.35821576]
[1728924559533,0.00165,65801.0,65798.0,0.35821576]
[1728924559534,0.151977,65799.0,65798.0,0.35821576]
[1728924559778,0.151977,65799.0,65798.0,0.1803]
[1728924560772,0.151977,65799.0,65798.0,0.1813]
[1728924562908,0.153977,65799.0,65798.0,0.1813]
[1728924563132,0.002,65799.0,65798.0,0.1813]
[1728924563416,0.153977,65799.0,65798.0,0.1813]
[1728924563918,0.002,65799.0,65798.0,0.1813]
[1728924564160,0.153977,65799.0,65798.0,0.1813]
[1728924564398,0.002,65799.0,65798.0,0.33328]
[1728924564723,0.003648,65799.0,65798.0,0.51119576]
[1728924565123,0.003648,65799.0,65798.0,0.35921576]
[1728924565370,0.003648,65799.0,65798.0,0.51119576]
[1728924565630,0.003648,65799.0,65798.0,0.35921576]
[1728924565880,0.003648,65799.0,65798.0,0.51119576]
[1728924566809,0.003648,65799.0,65798.0,0.85763999]
[1728924567033,0.003648,65799.0,65798.0,0.67972423]
[1728924568066,0.003648,65799.0,65798.0,0.52619576]
[1728924568298,0.001648,65799.0,65798.0,0.37421576]
[1728924568549,0.001648,65799.0,65798.0,0.52819576]
[1728924568777,0.001648,65799.0,65798.0,0.52719576]
[1728924569030,0.002648,65799.0,65798.0,0.38121576]
[1728924569270,0.001648,65799.0,65798.0,0.1973]
[1728924569744,0.002648,65799.0,65798.0,0.35928]
[1728924569971,0.002648,65799.0,65798.0,0.2073]
[1728924570605,0.38180307,65799.0,65798.0,0.1973]
[1728924570825,0.16867853,65799.0,65798.0,0.1973]
[1728924571290,0.16867783,65799.0,65798.0,0.1973]
[1728924571515,0.16867783,65799.0,65798.0,0.1903]
[1728924571721,0.19217078,65799.0,65798.0,0.1903]
[1728924571938,0.19117078,65799.0,65798.0,0.0987]
[1728924572173,0.19117078,65799.0,65798.0,0.0997]
[1728924572407,0.19117078,65799.0,65798.0,0.0987]
[1728924572408,0.19017078,65799.0,65798.0,0.0987]
[1728924572634,0.19117078,65799.0,65798.0,0.0987]
[1728924572884,0.19117078,65799.0,65798.0,0.0997]
[1728924573383,0.20242922,65799.0,65798.0,0.0997]
[1728924573640,0.19117078,65799.0,65798.0,0.0987]
[1728924573882,0.19317078,65799.0,65798.0,0.0987]
[1728924574345,0.20343531,65799.0,65798.0,0.0987]
[1728924574582,0.20443531,65799.0,65798.0,0.0987]
[1728924574804,0.19317078,65799.0,65798.0,0.0987]
[1728924575101,0.01770083,65799.0,65798.0,0.32908]
[1728924575345,0.03822732,65799.0,65798.0,0.32908]
[1728924575570,0.0177345,65799.0,65798.0,0.32908]
[1728924575781,0.001648,65799.0,65798.0,0.32908]
[1728924575997,0.0157342,65799.0,65798.0,0.32908]
[1728924576245,0.01573431,65799.0,65798.0,0.33508]
[1728924576463,0.001648,65799.0,65798.0,0.67852423]
[1728924576681,0.00165,65801.0,65800.0,0.173975]
[1728924576916,0.00165,65801.0,65800.0,0.50490347]
[1728924577120,0.00165,65815.0,65811.0,0.16195]
[1728924577322,0.0382909,65812.0,65811.0,0.52026576]
[1728924577558,0.0382943,65812.0,65811.0,0.52026576]
[1728924577977,0.01574388,65812.0,65811.0,0.52026576]
[1728924578392,0.03829621,65812.0,65811.0,0.52026576]
[1728924578606,0.03829621,65812.0,65811.0,0.52426576]
[1728924579094,0.03929621,65812.0,65811.0,0.53126576]
[1728924579972,0.01674388,65812.0,65811.0,0.53126576]
[1728924580390,0.03930318,65812.0,65811.0,0.53126576]
[1728924581024,0.19125018,65812.0,65811.0,0.1964]
[1728924581477,0.20253556,65812.0,65811.0,0.1964]
[1728924583691,0.05058856,65812.0,65811.0,0.1964]
[1728924583925,0.20260267,65812.0,65811.0,0.1964]
[1728924584961,0.22068079,65812.0,65811.0,0.1964]
[1728924587364,0.20260267,65812.0,65811.0,0.1964]
[1728924587802,0.1771852,65812.0,65811.0,0.1964]
[1728924588016,0.22066423,65812.0,65811.0,0.1964]
[1728924588229,0.2025944,65812.0,65811.0,0.1964]
[1728924589699,0.2025944,65812.0,65811.0,0.1159]
[1728924589910,0.22065935,65812.0,65811.0,0.1159]
[1728924590584,0.22065935,65812.0,65811.0,0.16116463]
[1728924590793,0.22065935,65812.0,65811.0,0.1159]
[1728924591625,0.22065935,65812.0,65811.0,0.016]
[1728924592059,0.22065935,65812.0,65810.0,0.005]
[1728924592060,0.15195,65811.0,65810.0,0.005]
[1728924592275,0.37153077,65811.0,65810.0,0.005]
[1728924593262,0.37153077,65811.0,65808.0,0.04526463]
[1728924593263,0.455857,65810.0,65809.0,0.005]
[1728924593469,0.455857,65810.0,65807.0,0.005]
[1728924593470,0.174957,65808.0,65807.0,0.005]
[1728924593674,0.39453777,65808.0,65807.0,0.005]
[1728924594337,0.39453777,65808.0,65798.0,0.11434069]
[1728924594338,0.023,65804.0,65798.0,0.000824]
[1728924594554,0.174977,65799.0,65798.0,0.000824]
[1728924594764,0.39455777,65799.0,65798.0,0.000824]
[1728924595832,0.39455777,65799.0,65798.0,0.001824]
[1728924596047,0.39455777,65799.0,65798.0,0.000824]
[1728924596248,0.39455777,65799.0,65798.0,0.001824]
[1728924596673,0.37397675,65799.0,65798.0,0.001824]
[1728924597304,0.37197675,65799.0,65798.0,0.001824]
[1728924597504,0.37697675,65799.0,65798.0,0.002824]
[1728924597924,0.21999975,65799.0,65798.0,0.000824]
[1728924598153,0.37197675,65799.0,65798.0,0.000824]
[1728924598343,0.38397675,65799.0,65798.0,0.002824]
[1728924598578,0.37697675,65799.0,65798.0,0.001824]
[1728924599216,0.3689118,65799.0,65798.0,0.002824]
[1728924599447,0.3539118,65799.0,65798.0,0.000824]
[1728924599667,0.36089795,65799.0,65798.0,0.001824]
[1728924599877,0.38395352,65799.0,65798.0,0.00168534]
[1728924600074,0.37695352,65799.0,65798.0,0.001]
[1728924600276,0.37195352,65799.0,65798.0,0.000824]
[1728924600689,0.37695352,65799.0,65798.0,0.001824]
[1728924601107,0.37195352,65799.0,65798.0,0.000824]
[1728924601567,0.38695352,65799.0,65798.0,0.002824]
[1728924601783,0.37695352,65799.0,65798.0,0.001824]
[1728924602213,0.38495352,65799.0,65798.0,0.002824]
[1728924602832,0.38495301,65799.0,65798.0,0.002824]
[1728924603479,0.38495206,65799.0,65798.0,0.002824]
[1728924603891,0.48495206,65799.0,65798.0,0.002824]
[1728924604102,0.60558184,65799.0,65798.0,0.002824]
[1728924604312,0.56035206,65799.0,65798.0,0.002824]
[1728924604530,0.48495206,65799.0,65798.0,0.002824]
[1728924606044,0.48493359,65799.0,65798.0,0.002824]
[1728924610091,0.48493359,65799.0,65798.0,0.001824]
[1728924610092,0.47993359,65799.0,65798.0,0.001824]
[1728924610299,0.48493041,65799.0,65798.0,0.002824]
[1728924610938,0.47693041,65799.0,65798.0,0.001824]
[1728924611798,0.49257841,65799.0,65798.0,0.001824]
[1728924613814,0.49256255,65799.0,65798.0,0.001824]
[1728924614733,0.36956255,65799.0,65798.0,0.077124]
[1728924614952,0.35152038,65799.0,65798.0,0.077124]
[1728924615159,0.34024403,65799.0,65798.0,0.077124]
[1728924615289,0.35151476,65799.0,65798.0,0.077124]
[1728924615727,0.34651476,65799.0,65798.0,0.076124]
[1728924615952,0.34424403,65799.0,65798.0,0.076124]
[1728924616313,0.35224403,65799.0,65798.0,0.077124]
[1728924616516,0.35824403,65799.0,65798.0,0.077124]
[1728924616670,0.35024403,65799.0,65798.0,0.076124]
[1728924617166,0.35424403,65799.0,65798.0,0.168224]
[1728924617806,0.34824403,65799.0,65798.0,0.168224]
[1728924617933,0.35024403,65799.0,65798.0,0.168224]
[1728924619306,0.36152323,65799.0,65798.0,0.168224]
[1728924620152,0.36152323,65799.0,65798.0,0.033264]
[1728924620583,0.326961,65798.0,65795.0,0.005]
[1728924620799,0.326961,65798.0,65790.0,0.000824]
[1728924620800,0.174996,65791.0,65790.0,0.000824]
[1728924621039,0.50644023,65791.0,65790.0,0.000824]
[1728924621250,0.53180999,65791.0,65790.0,0.000824]
[1728924621478,0.53181853,65791.0,65790.0,0.000824]
[1728924622680,0.54081853,65791.0,65790.0,0.001824]
[1728924622897,0.54781853,65791.0,65790.0,0.001824]
[1728924623128,0.38797098,65791.0,65790.0,0.001824]
[1728924623831,0.36990277,65791.0,65790.0,0.001824]
[1728924624300,0.0413783,65791.0,65790.0,0.006824]
[1728924624567,0.19338872,65791.0,65790.0,0.006824]
[1728924624801,0.34691719,65791.0,65790.0,0.001824]
[1728924625276,0.36499823,65791.0,65790.0,0.001824]
[1728924625474,0.37399803,65791.0,65790.0,0.001824]
[1728924625703,0.39699803,65791.0,65790.0,0.001824]
[1728924625903,0.46765017,65791.0,65790.0,0.001824]
[1728924626123,0.49703152,65791.0,65790.0,0.001824]
[1728924627583,0.48803152,65791.0,65790.0,0.000824]
[1728924627799,0.48103152,65791.0,65790.0,0.000824]
[1728924628229,0.49503152,65791.0,65790.0,0.000824]
[1728924628879,0.73840184,65791.0,65790.0,0.000824]
[1728924629086,0.79908184,65791.0,65790.0,0.000824]
[1728924629213,0.79708184,65791.0,65790.0,0.000824]
[1728924629429,0.68549684,65791.0,65790.0,0.000824]
[1728924629874,0.57722084,65791.0,65790.0,0.000824]
[1728924630301,0.57922084,65791.0,65790.0,0.000824]
[1728924630542,0.69199884,65791.0,65790.0,0.000824]
[1728924630778,0.56322084,65791.0,65790.0,0.000824]
[1728924630996,0.59122084,65791.0,65790.0,0.000824]
[1728924631244,0.58532084,65791.0,65790.0,0.000824]
[1728924631459,0.55732084,65791.0,65790.0,0.000824]
[1728924631674,0.57132084,65791.0,65790.0,0.000824]
[1728924631886,0.58532084,65791.0,65790.0,0.000824]
[1728924632836,0.90587962,65791.0,65790.0,1e-06]
[1728924633046,0.89456997,65791.0,65790.0,1e-06]
[1728924633275,0.9058581,65791.0,65790.0,1e-06]
[1728924633957,0.9198581,65791.0,65790.0,1e-06]
[1728924634199,0.87462832,65791.0,65790.0,1e-06]
[1728924634665,0.82141832,65791.0,65790.0,1e-06]
[1728924635572,0.82341832,65791.0,65790.0,1e-06]
[1728924635997,0.82141832,65791.0,65790.0,1e-06]
[1728924636435,0.82341832,65791.0,65790.0,1e-06]
[1728924638505,0.61381832,65791.0,65790.0,1e-06]
[1728924638716,0.38009932,65791.0,65790.0,1e-06]
[1728924640049,0.50309932,65791.0,65790.0,1e-06]
[1728924640322,0.45962427,65791.0,65790.0,1e-06]
[1728924640551,0.50304029,65791.0,65790.0,1e-06]
[1728924643776,0.54827007,65791.0,65790.0,1e-06]
[1728924643987,0.50304029,65791.0,65790.0,1e-06]
[1728924644234,0.45962427,65791.0,65790.0,1e-06]
[1728924644447,0.50304299,65791.0,65790.0,1e-06]
[1728924646985,0.67598998,65791.0,65790.0,1e-06]
[1728924647229,0.63862077,65791.0,65790.0,1e-06]
[1728924647969,0.75122168,65791.0,65790.0,1e-06]
[1728924648191,0.75122168,65791.0,65771.0,0.30357807]
[1728924648192,0.27504,65772.0,65771.0,0.22717807]
[1728924648410,0.4539606,65772.0,65771.0,0.22717807]
[1728924648593,0.4720043,65772.0,65771.0,0.22717807]
[1728924648803,0.152061,65763.0,65762.0,0.0915]
[1728924649034,0.3720253,65763.0,65762.0,0.0915]
[1728924650564,0.3810253,65763.0,65762.0,0.0915]
[1728924650779,0.3890253,65763.0,65762.0,0.0915]
[1728924651417,0.3709816,65763.0,65762.0,0.0915]
[1728924651631,0.169061,65763.0,65762.0,0.0965]
[1728924651867,0.19448632,65763.0,65762.0,0.0965]
[1728924652758,0.21257314,65763.0,65762.0,0.0965]
[1728924652984,0.19448632,65763.0,65762.0,0.0965]
[1728924653450,0.21257485,65763.0,65762.0,0.0965]
[1728924653936,0.38910332,65763.0,65762.0,0.0915]
[1728924654189,0.38910332,65763.0,65751.0,0.22717807]
[1728924654190,0.17507,65759.0,65758.0,0.005]
[1728924654424,0.37211232,65759.0,65758.0,0.005]
[1728924655423,0.04351385,65759.0,65758.0,0.41009383]
[1728924655679,0.456144,65769.0,65768.0,0.176]
[1728924655925,0.152045,65770.0,65768.0,0.176]
[1728924656183,0.152033,65775.0,65774.0,0.0972]
[1728924656406,0.34908573,65775.0,65774.0,0.0972]
[1728924656835,0.37208573,65775.0,65774.0,0.0972]
[1728924657274,0.29555726,65775.0,65774.0,0.0972]
[1728924657490,0.52573533,65775.0,65774.0,0.1763]
[1728924657698,0.29855726,65775.0,65774.0,0.1763]
[1728924657907,0.30355726,65775.0,65774.0,0.1763]
[1728924658333,0.32117085,65775.0,65774.0,0.1763]
[1728924658751,0.31817085,65775.0,65774.0,0.1763]
[1728924658975,0.32017085,65775.0,65774.0,0.177124]
[1728924659451,0.31818099,65775.0,65774.0,0.177124]
[1728924660922,0.49470946,65775.0,65774.0,0.177124]
[1728924661131,0.49470946,65775.0,65774.0,0.172124]
[1728924662107,0.49470873,65775.0,65774.0,0.172124]
[1728924662327,0.48009403,65775.0,65774.0,0.172124]
[1728924662529,0.48709403,65775.0,65774.0,0.172124]
[1728924662753,0.47909403,65775.0,65774.0,0.172124]
[1728924663165,0.48909403,65775.0,65774.0,0.172124]
[1728924663772,0.48209403,65775.0,65774.0,0.172124]
[1728924663982,0.48209403,65775.0,65774.0,0.171624]
[1728924664195,0.49109403,65775.0,65774.0,0.171624]
[1728924665155,0.49109403,65775.0,65774.0,0.092524]
[1728924666438,0.49109684,65775.0,65774.0,0.092524]
[1728924669018,0.49109684,65775.0,65774.0,0.000824]
[1728924669250,0.51371413,65775.0,65774.0,0.000824]
[1728924670552,0.7408922,65775.0,65774.0,0.000824]
[1728924670772,0.55611058,65775.0,65774.0,0.000824]
[1728924670991,0.59181413,65775.0,65774.0,0.000824]
[1728924671216,0.56919684,65775.0,65774.0,0.000824]
[1728924672355,0.59182506,65775.0,65774.0,0.000824]
[1728924672768,0.58182506,65775.0,65774.0,0.000824]
[1728924673168,0.59582506,65775.0,65774.0,0.000824]
[1728924673409,0.58682506,65775.0,65774.0,0.000824]
[1728924673818,0.59982506,65775.0,65774.0,0.000824]
[1728924675338,0.52172506,65775.0,65774.0,0.000824]
[1728924677406,0.49916738,65775.0,65774.0,0.000824]
[1728924677614,0.48500962,65775.0,65774.0,0.000824]
[1728924677764,0.49916738,65775.0,65774.0,0.000824]
[1728924678207,0.47616738,65775.0,65774.0,0.098224]
[1728924679465,0.47616738,65775.0,65774.0,0.103224]
[1728924680045,0.37616738,65775.0,65774.0,0.103224]
[1728924680465,0.36316738,65775.0,65774.0,0.103224]
[1728924680695,0.34916738,65775.0,65774.0,0.103224]
[1728924680897,0.19763891,65775.0,65774.0,0.103224]
[1728924681109,0.2006507,65775.0,65774.0,0.103224]
[1728924681318,0.22330942,65775.0,65774.0,0.103224]
[1728924681966,0.22312579,65775.0,65774.0,0.103224]
[1728924682666,0.22312579,65775.0,65774.0,0.181124]
[1728924684226,0.22477579,65775.0,65774.0,0.181124]
[1728924686480,0.15849937,65775.0,65774.0,0.181124]
[1728924687577,0.22473607,65775.0,65774.0,0.181124]
[1728924688869,0.19529692,65775.0,65774.0,0.181124]
[1728924689087,0.22473496,65775.0,65774.0,0.181124]
[1728924689293,0.22473453,65775.0,65774.0,0.181124]
[1728924693092,0.22471976,65775.0,65774.0,0.181124]
[1728924697178,0.05475883,65775.0,65774.0,0.36403976]
[1728924697398,0.305645,65791.0,65789.0,0.005]
[1728924697399,0.153646,65790.0,65789.0,0.005]
[1728924697610,0.17910959,65790.0,65789.0,0.1757]
[1728924698736,0.20173545,65790.0,65789.0,0.1757]
[1728924699569,0.17910959,65790.0,65789.0,0.1757]
[1728924700042,0.18210959,65790.0,65789.0,0.1757]
[1728924700245,0.18410959,65790.0,65789.0,0.1757]
[1728924700662,0.16996315,65790.0,65789.0,0.1757]
[1728924707181,0.16996315,65790.0,65789.0,0.1004]
[1728924707402,0.16996315,65790.0,65789.0,0.0954]
[1728924707642,0.36910273,65790.0,65789.0,0.005]
[1728924707882,0.38719625,65790.0,65789.0,0.005]
[1728924708097,0.69119425,65790.0,65789.0,0.005]
[1728924708314,0.53919625,65790.0,65784.0,0.0968]
[1728924708534,0.152005,65787.0,65786.0,0.005]
[1728924708736,0.17463105,65787.0,65786.0,0.005]
[1728924708995,0.20404172,65787.0,65786.0,0.005]
[1728924709621,0.21818572,65787.0,65786.0,0.005]
[1728924709836,0.21818572,65787.0,65786.0,0.007]
[1728924710488,0.21818572,65787.0,65786.0,0.008]
[1728924711331,0.21818572,65787.0,65786.0,0.007]
[1728924712473,0.21818572,65787.0,65786.0,0.005]
[1728924712709,0.2070603,65787.0,65786.0,0.005]
[1728924712938,0.22320576,65787.0,65786.0,0.005]
[1728924713153,0.22020587,65787.0,65786.0,0.005]
[1728924713383,0.22320587,65787.0,65786.0,0.005]
[1728924716361,0.304026,65784.0,65782.0,0.005]
[1728924716608,0.304026,65784.0,65781.0,0.005]
[1728924716609,0.20162308,65783.0,65781.0,0.005]
[1728924716795,0.16616555,65782.0,65781.0,0.005]
[1728924717243,0.20012209,65782.0,65781.0,0.005]
[1728924718561,0.21823574,65782.0,65781.0,0.005]
[1728924718988,0.21823574,65782.0,65781.0,0.01]
[1728924719237,0.06621874,65782.0,65781.0,0.01]
[1728924719852,0.06621874,65782.0,65781.0,0.005]
[1728924720059,0.07421874,65782.0,65781.0,0.005]
[1728924720274,0.07021874,65782.0,65781.0,0.005]
[1728924720499,0.04810509,65782.0,65781.0,0.331019]
[1728924720716,0.01814855,65782.0,65781.0,0.336019]
[1728924721171,0.004,65782.0,65781.0,0.38149875]
[1728924721383,0.004,65782.0,65781.0,0.40923863]
[1728924721600,0.001648,65790.0,65789.0,0.167001]
[1728924721817,0.001648,65790.0,65789.0,0.52051676]
[1728924722030,0.001648,65799.0,65798.0,0.33258]
[1728924722248,0.01580193,65799.0,65798.0,0.33258]
[1728924723389,0.01579623,65799.0,65798.0,0.1806]
[1728924723653,0.01579623,65799.0,65798.0,0.33458]
[1728924723654,0.01679623,65799.0,65798.0,0.33458]
[1728924723875,0.01779623,65799.0,65798.0,0.33858]
[1728924724944,0.002648,65799.0,65798.0,0.33658]
[1728924725159,0.001648,65799.0,65798.0,0.33258]
[1728924725377,0.01679292,65799.0,65798.0,0.33758]
[1728924725586,0.002648,65799.0,65798.0,0.34158]
[1728924726483,0.01679261,65799.0,65798.0,0.1846]
[1728924726730,0.1800847,65799.0,65798.0,0.1846]
[1728924726997,0.01679261,65799.0,65798.0,0.1896]
[1728924727244,0.01679261,65799.0,65798.0,0.34138]
[1728924727482,0.01679214,65799.0,65798.0,0.34138]
[1728924727718,0.01679214,65799.0,65798.0,0.1844]
[1728924727952,0.01679214,65799.0,65798.0,0.1894]
[1728924731165,0.01679214,65799.0,65798.0,0.34138]
[1728924731376,0.002648,65799.0,65798.0,0.34138]
[1728924739943,0.19945367,65799.0,65798.0,0.014]
[1728924740195,0.16875154,65799.0,65798.0,0.014]
[1728924740474,0.20265867,65799.0,65798.0,0.014]
[1728924740679,0.16875154,65799.0,65798.0,0.014]
[1728924741408,0.16875154,65799.0,65798.0,0.01]
[1728924741649,0.16775154,65799.0,65798.0,0.005]
[1728924741912,0.17075154,65799.0,65798.0,0.005]
[1728924742161,0.16875154,65799.0,65798.0,0.005]
[1728924742395,0.16775154,65799.0,65798.0,0.005]
[1728924742650,0.16593157,65799.0,65798.0,0.006]
[1728924742882,0.18006528,65799.0,65798.0,0.006]
[1728924743123,0.16875849,65799.0,65798.0,0.006]
[1728924743340,0.18006635,65799.0,65798.0,0.006]
[1728924744010,0.16875849,65799.0,65798.0,0.006]
[1728924744249,0.01678149,65799.0,65798.0,0.006]
[1728924744472,0.01678149,65799.0,65798.0,0.33388]
[1728924744701,0.01578149,65799.0,65798.0,0.33388]
[1728924744919,0.01578837,65799.0,65798.0,0.33288]
[1728924745133,0.01578837,65799.0,65798.0,0.33588]
[1728924748165,0.001648,65799.0,65798.0,0.34738]
[1728924748820,0.001648,65799.0,65798.0,0.1904]
[1728924749026,0.153625,65799.0,65798.0,0.1904]
[1728924749370,0.19047395,65799.0,65798.0,0.008]
[1728924749762,0.19051169,65799.0,65798.0,0.008]
[1728924750444,0.19051169,65799.0,65798.0,0.007]
[1728924751474,0.19051169,65799.0,65798.0,0.005]
[1728924751712,0.19051169,65799.0,65797.0,0.005]
[1728924751713,0.15198,65798.0,65797.0,0.005]
[1728924751953,0.18886669,65798.0,65797.0,0.005]
[1728924752373,0.34239516,65798.0,65797.0,0.005]
[1728924753489,0.37190223,65798.0,65797.0,0.005]
[1728924753703,0.37590223,65798.0,65797.0,0.005]
[1728924754624,0.38190223,65798.0,65797.0,0.006]
[1728924755292,0.37790223,65798.0,65797.0,0.006]
[1728924755509,0.37790223,65798.0,65797.0,0.006825]
[1728924755724,0.38390223,65798.0,65797.0,0.006825]
[1728924757939,0.38387627,65798.0,65797.0,0.006825]
[1728924759941,0.40687627,65798.0,65797.0,0.006825]
[1728924762174,0.37001554,65798.0,65797.0,0.006825]
[1728924762390,0.40684428,65798.0,65797.0,0.006825]
[1728924763732,0.58476004,65798.0,65797.0,0.006825]
[1728924765554,0.58476004,65798.0,65797.0,0.001825]
[1728924765555,0.68476004,65798.0,65797.0,0.001825]
[1728924765789,0.55271554,65798.0,65797.0,0.001825]
[1728924766005,0.58954696,65798.0,65797.0,0.001825]
[1728924767679,0.7249399,65798.0,65797.0,0.001825]
[1728924767887,0.44566696,65798.0,65788.0,0.22717807]
[1728924768107,0.45291676,65789.0,65788.0,0.22717807]
[1728924768320,0.67278372,65789.0,65788.0,0.22717807]
[1728924768531,0.152017,65782.0,65781.0,0.005825]
[1728924768744,0.55013423,65782.0,65781.0,0.005825]
[1728924768954,0.55006147,65782.0,65781.0,0.005825]
[1728924769790,0.55004078,65782.0,65781.0,0.005825]
[1728924770209,0.55204078,65782.0,65781.0,0.005825]
[1728924770433,0.55204078,65782.0,65781.0,0.000825]
[1728924771346,0.65504078,65782.0,65781.0,0.000825]
[1728924772094,0.65204078,65782.0,65781.0,0.000825]
[1728924772296,0.65898942,65782.0,65781.0,0.000825]
[1728924772502,0.66698942,65782.0,65781.0,0.000825]
[1728924772709,0.67398942,65782.0,65781.0,0.000825]
[1728924773536,0.97679812,65782.0,65781.0,0.000825]
[1728924773765,0.88862563,65782.0,65781.0,0.000825]
[1728924774012,0.74621708,65782.0,65781.0,0.000825]
[1728924774252,0.93213284,65782.0,65781.0,0.000825]
[1728924774497,0.95472374,65782.0,65781.0,0.000825]
[1728924774735,0.93972374,65782.0,65781.0,0.000825]
[1728924774981,1.06752374,65782.0,65781.0,0.000825]
[1728924775467,1.05352374,65782.0,65781.0,0.000825]
[1728924775707,1.03952374,65782.0,65781.0,0.000825]
[1728924775979,1.05352374,65782.0,65781.0,0.000825]
[1728924776220,1.06752374,65782.0,65781.0,0.000825]
[1728924776447,1.05352374,65782.0,65781.0,0.000825]
[1728924776683,1.06752374,65782.0,65781.0,0.000825]
[1728924776913,1.23316425,65782.0,65781.0,0.000825]
[1728924777159,1.21916425,65782.0,65781.0,0.000825]
[1728924777395,1.07752374,65782.0,65781.0,0.000825]
[1728924777615,1.07952374,65782.0,65781.0,0.000825]